Cogmind - Beta 15 @@@ ROGUE MODE // 2025.09.21 @ 11:09:52 Player: Runagate Result: Self-destructed Performance ------------- Evolutions (1) 500 Regions Visited (2) 400 Robots Destroyed (22) 110 Value Destroyed (398) 398 Prototype IDs (0) 0 Alien Tech Used (0) 0 Bonus (0) 0 TOTAL SCORE: 1408 Bonus ------- None Cogmind --------- Core Integrity 254/400 Matter 276/300 Energy 250/250 System Corruption 0% Temperature Warning (307) Movement Walking (120) Location -9/Materials Parts ------- > --- POWER (1) -------- Ion Engine > --- PROPULSION (3) --- Aluminum Leg Aluminum Leg Aluminum Leg > --- UTILITY (2) ------ Medium Storage Unit Improved Terrain Scanner > --- WEAPON (3) ------- Beam Rifle Light Assault Rifle > --- INVENTORY (10) --- Ion Engine Light Ion Engine Heat Sink Heat Sink Medium Matter Pod (70) Seismic Detector Medium Laser Medium Laser Medium Laser Rocket Launcher Peak State ------------ > --- POWER ------------ Ion Engine > --- PROPULSION ------- Aluminum Leg Aluminum Leg Aluminum Leg > --- UTILITY ---------- Medium Storage Unit Improved Terrain Scanner > --- WEAPON ----------- Medium Laser Beam Rifle Light Assault Rifle > --- INVENTORY -------- Ion Engine Light Ion Engine Heat Sink Heat Sink Medium Matter Pod Seismic Detector Medium Laser Medium Laser Light Assault Rifle Rocket Launcher [Rating: 13] Favorites ----------- Power Ion Engine Engine Ion Engine Propulsion Aluminum Leg Leg Aluminum Leg Utility Improved Terrain Scanner Device Improved Terrain Scanner Storage Medium Storage Unit Weapon Medium Laser Energy Gun Medium Laser Ballistic Gun Light Assault Rifle Build | -11 -10 -9 ------- Run | Yrd Mat Mat Slots Evolved 2 | . . 2 Power . | . . . Propulsion 1 | . . 1 Utility . | . . . Weapon 1 | . . 1 Parts Attached 16 | 8 5 3 Power 2 | 1 1 . Engine 2 | 1 1 . Core . | . . . Reactor . | . . . Propulsion 4 | 2 1 1 Treads . | . . . Leg 4 | 2 1 1 Wheel . | . . . Hover . | . . . Flight . | . . . Utility 5 | 3 2 . Device 2 | 2 . . Storage 3 | 1 2 . Processor . | . . . Hackware . | . . . Protection . | . . . Artifact . | . . . Weapon 5 | 2 1 2 Energy Gun 2 | 1 . 1 Energy Cannon . | . . . Ballistic Gun 3 | 1 1 1 Ballistic Cannon . | . . . Launcher . | . . . Special Weapon . | . . . Impact Weapon . | . . . Slashing Weapon . | . . . Piercing Weapon . | . . . Special Melee Weapon . | . . . Unidentified Prototypes . | . . . Parts Lost 1 | . . 1 Power . | . . . Propulsion . | . . . Utility . | . . . Weapon 1 | . . 1 Highest Loss Streak 1 | . . 1 To Critical Strikes . | . . . Average Backups 7 | 1 6 9 Power 1 | . 1 2 Propulsion . | . . . Utility 2 | . 2 4 Weapon 2 | . 2 3 Tool/Special . | . . . Unused Backups 10 | . 2 8 Power 2 | . . 2 Propulsion . | . . . Utility 5 | . 1 4 Weapon 3 | . 1 2 Tool/Special . | . . . Average Slot Usage (%) 95 | . 100 90 Engine 12 | . 14 11 Leg 26 | . 28 24 Device 12 | . 14 11 Storage 12 | . 14 11 Energy Gun 15 | . 14 17 Ballistic Gun 14 | . 14 15 Peak Build Rating 13 | 9 10 13 Average Rating 9 | 6 9 11 On Entrance 6 | . 9 10 Naked Turns . | . . . Heaviest Build 47 | 12 47 22 Greatest Support 30 | 20 20 30 Greatest Overweight (x) 2 | . 2 1 Average Overweight (x) . | . . . Largest Inventory Capacity 20 | 8 20 10 Average Capacity 9 | 7 9 10 Most Carried 10 | 3 10 10 Average Carried 7 | 1 6 9 Final Capacity 10 | 8 10 10 Final Carried 10 | 3 10 10 Class Distribution -------------------- 59% | Mutant 33% | Skirmisher 6% | Scavenger-Skirmisher Dominant Class ---------------- Mutant | -10/Materials Skirmisher | -9/Materials Resources | -11 -10 -9 ----------- Run | Yrd Mat Mat Matter Collected 531 | 287 111 133 Remotely 133 | 133 . . Salvage Created 577 | 133 132 312 Parts 44 | 11 8 25 Haulers Intercepted . | . . . Recyclers Shooed 1 | . . 1 Parts Field Recycled . | . . . Retrieved Matter . | . . . Parts Self-Destructed . | . . . Prevented . | . . . Kills | -11 -10 -9 ------- Run | Yrd Mat Mat Combat Hostiles Destroyed 14 | . 5 9 Guns 11 | . 5 6 AOE 3 | . . 3 Classes Destroyed 6 | 2 2 2 Builder 1 | . . 1 Tunneler 3 | 3 . . Recycler 2 | 1 . 1 Watcher 2 | . . 2 Swarmer 7 | . 3 4 Grunt 7 | . 2 5 Best Kill Streak 5 | 2 3 5 Combat Bots Only 5 | . 3 5 Max Kills in Single Turn 3 | 1 1 3 Gunslinging . | . . . Exploded 3 | . . 3 Melee . | . . . Uniques/NPCs Destroyed . | . . . Combat | -11 -10 -9 -------- Run | Yrd Mat Mat Hostile Shots Fired 61 | . 21 40 Missed 16 | . 7 9 Hits 45 | . 14 31 Projectile 45 | . 14 31 Damage Taken 608 | . 128 480 Core 168 | . 22 146 Absorbed by Shields . | . . . Core Remaining (%) 95 | 100 91 . Volleys Fired 49 | 7 16 26 Largest 3 | 2 2 3 Hottest 126 | 70 70 126 Shots Fired 124 | 14 32 78 Gun 124 | 14 32 78 Cannon . | . . . Launcher . | . . . Special . | . . . Kinetic 67 | 7 16 44 Thermal 57 | 7 16 34 Explosive . | . . . Electromagnetic . | . . . Robot Hit Streak 27 | 4 13 27 Robot Miss Streak 3 | 1 2 3 Penetration Max . | . . . Secondary Targets 4 | . 2 2 Max Gunslinging Chain 1 | . 1 1 Shots Hit Robots 82 | 9 23 50 Core Hits 38 | 6 11 21 Critical Kills . | . . . Critical Parts Destroyed . | . . . Critical Strikes 6 | . 2 4 Burn 6 | . 2 4 Melee Attacks . | . . . Impact . | . . . Slashing . | . . . Piercing . | . . . Sneak Attacks . | . . . Combat Hostiles . | . . . Follow-up Attacks . | . . . Damage Inflicted 1353 | 114 304 935 Guns 984 | 104 287 593 Cannons . | . . . Explosions 332 | . . 332 Melee . | . . . Ramming 37 | 10 17 10 Kinetic 426 | 55 137 234 Thermal 890 | 49 150 691 Explosive . | . . . Electromagnetic . | . . . Impact . | . . . Slashing . | . . . Piercing . | . . . Highest Corruption . | . . . Average Corruption . | . . . Corruption Purged . | . . . Corruption Blocked . | . . . Overload Shots . | . . . Overflow Damage 68 | . . 68 Projectiles . | . . . Explosions 68 | . . 68 Melee . | . . . Knockbacks . | . . . Impact . | . . . Kinetic . | . . . Secondary . | . . . Self-Inflicted Damage 95 | . . 95 Shots 1 | . . 1 Rammed . | . . . Targets Rammed 10 | 5 4 1 Kicked 10 | 5 4 1 Crushed . | . . . Highest Temperature 330 | 60 108 330 Average Temperature 59 | 26 45 74 Received Heat Transfer 192 | . 54 138 Effects 1 | . . 1 Interference 1 | . . 1 Siege Activations . | . . . Martial Activations . | . . . Shielding Activations . | . . . Robots Disrupted . | . . . Combat Hostiles . | . . . Robots Corrupted . | . . . Combat Hostiles . | . . . Parts Fried . | . . . Impact Corruptions . | . . . Robots Melted . | . . . Combat Hostiles . | . . . Parts Melted 3 | . 1 2 Heat Transferred 2235 | 148 592 1495 Parts Sabotaged . | . . . Parts Stolen . | . . . Parts Stripped . | . . . Power Chain Reactions . | . . . Alert | -11 -10 -9 ------- Run | Yrd Mat Mat Maximum Alert Level . | . . . Low Security (%) 100 | 100 100 100 Level 1 . | . . . Level 2 . | . . . Level 3 . | . . . Level 4 . | . . . Level 5 . | . . . High Security . | . . . Max Security . | . . . Peak Influence 177 | 10 70 177 Initial 12 | . . 12 Average 47 | 1 18 97 Influence Increases 422 | 20 120 282 Destroy 0b10 Robot/C 280 | . 100 180 Destroy 0b10 Robot/NC 40 | 20 . 20 Destroy Leader 34 | . 20 14 Disable Machine 30 | . . 30 Destroy Structure 38 | . . 38 Influence Decreases 328 | 20 90 218 Entered New Map 18 | . . 18 Time Decay 300 | 20 90 190 Lost Part 10 | . . 10 Squads Dispatched 1 | . 1 . Investigation . | . . . Extermination . | . . . Reinforcement 1 | . 1 . Assault . | . . . Garrison . | . . . Intercept . | . . . Searches Triggered . | . . . Construction Impeded . | . . . Haulers Reinforced . | . . . Active Scanning Responses . | . . . Cargo Convoy Interrupts . | . . . Stealth | -11 -10 -9 --------- Run | Yrd Mat Mat Distress Signals 1 | . 1 . Communications Jammed . | . . . Distress Signals . | . . . Times Spotted 26 | . 10 16 Peak Tracking Total 4 | . 4 4 Tactical Retreats . | . . . Traps | -11 -10 -9 ------- Run | Yrd Mat Mat Traps Triggered . | . . . Indirectly . | . . . Trap Hack Attempts . | . . . Triggered . | . . . Disarmed . | . . . Reprogrammed . | . . . Reused . | . . . Traps Extracted . | . . . Installed . | . . . Triggered . | . . . Machines | -11 -10 -9 ---------- Run | Yrd Mat Mat Machines Disabled 2 | . . 2 Max in Single Turn 2 | . . 2 Machines Repaired . | . . . Machines Dismantled . | . . . Machines Sabotaged . | . . . Overloaded Fab Kills . | . . . Hacking | -11 -10 -9 --------- Run | Yrd Mat Mat Machines Accessed 2 | . 1 1 Terminals 2 | . 1 1 Fabricators . | . . . Repair Stations . | . . . Recycling Units . | . . . Scanalyzers . | . . . Garrison Access . | . . . Total Hacks 4 | . 2 2 Successful 1 | . 1 . Failed 3 | . 1 2 Catastrophic 2 | . 1 1 Database Lockouts . | . . . Manual 3 | . 1 2 Terminals 4 | . 2 2 Fabricators . | . . . Repair Stations . | . . . Recycling Units . | . . . Scanalyzers . | . . . Garrison Access . | . . . Terminal Hacks 1 | . 1 . Zone Layout 1 | . 1 . Fabricator Hacks . | . . . Repair Station Hacks . | . . . Recycling Unit Hacks . | . . . Scanalyzer . | . . . Garrison Access Hacks . | . . . Unauthorized Hacks . | . . . Terminals . | . . . Fabricators . | . . . Repair Stations . | . . . Recycling Units . | . . . Scanalyzers . | . . . Garrison Access . | . . . Data Cores Recovered . | . . . Used . | . . . Hacking Detections 2 | . 1 1 Full Trace Events . | . . . Feedback Events . | . . . Feedback Blocked . | . . . Robot Schematics Acquired . | . . . Robots Built . | . . . Authchips . | . . . Time . | . . . Total Robot Build Rating . | . . . Part Schematics Acquired . | . . . Parts Built . | . . . Authchips . | . . . Time . | . . . Total Part Build Rating . | . . . Parts Repaired . | . . . Time . | . . . Parts Recycled . | . . . Recycled Matter . | . . . Retrieved Matter . | . . . Retrieved Components . | . . . Parts Scanalyzed . | . . . Part Schematics Acquired . | . . . Parts Damaged . | . . . Bothacking | -11 -10 -9 ------------ Run | Yrd Mat Mat Used RIF Installer . | . . . Robots Hacked . | . . . Non-combat . | . . . Combat . | . . . Robot Hacks Applied . | . . . Relay Couplers Released . | . . . Fabnet Peak Effective % . | . . . Robots Rewired . | . . . Allies Hacked . | . . . Hacks Repelled . | . . . Allies | -11 -10 -9 -------- Run | Yrd Mat Mat Total Allies . | . . . Largest Group . | . . . Highest-Rated Group . | . . . Highest-Rated Ally . | . . . Total Orders . | . . . Ally Attacks . | . . . Total Damage . | . . . Kills . | . . . Allies Corrupted . | . . . Allies Melted . | . . . Intel | -11 -10 -9 ------- Run | Yrd Mat Mat Active Infowar (turns) 926 | 29 493 404 Terrain 926 | 29 493 404 Robot Analysis Total . | . . . Derelict Logs Recovered . | . . . Drone Launches . | . . . Drone Recoveries . | . . . Exploration | -11 -10 -9 ------------- Run | Yrd Mat Mat Turns Passed 1010 | 113 493 404 Spaces Moved 567 | 64 335 168 Core 7 | 7 . . Treads . | . . . Legs 560 | 57 335 168 Wheels . | . . . Hover . | . . . Flight . | . . . Fastest Speed 50 | 50 120 120 Average Speed 135 | 112 121 172 Slowest Speed 260 | 120 260 190 Overloaded Moves . | . . . Propulsion Burnouts . | . . . Robots Hopped . | . . . Potential Cave-ins . | . . . Cave-ins Triggered . | . . . Exploration Rate (%) 26 | 3 52 23 Regions Visited 2 Branch Regions . Pre-discovered Areas . | . . . Known Exits Taken . | . . . Unknown Exits Taken 2 | 1 1 . Scrap Searched . | . . . Spaces Dug . | . . . Terrain Destroyed 46 | . . 46 Melee . | . . . Projectile . | . . . AOE 46 | . . 46 Terrain Rammed . | . . . Walls Destroyed . | . . . Machines Disabled . | . . . Actions | -11 -10 -9 --------- Run | Yrd Mat Mat Total 707 | 87 394 226 Wait 45 | 1 20 24 Move 565 | 63 334 168 Hop . | . . . Pick Up 11 | 3 8 . Fast Attach 8 | 7 . 1 Attach 1 | . . 1 Detach . | . . . Swap 11 | 1 6 4 Drop 7 | . 6 1 Fire 49 | 7 16 26 Melee . | . . . Ram . | . . . Kick 10 | 5 4 1 Crush . | . . . Escape Stasis . | . . . Rewire . | . . . Trap . | . . . Miscellaneous . | . . . Route ------- -11/Scrapyard -10/Materials (discovered 3 exits: *Mat / [*Min x2]) -9/Materials History --------- Turn | Location | Event 4 | -11/Scrapyard | Discovered new exit (range 14) 114 | -11/Scrapyard | Entered Materials 248 | -10/Materials | Discovered new exit (range 5) 298 | -10/Materials | Discovered new exit (range 15) 312 | -10/Materials | Build established: Mutant 575 | -10/Materials | Discovered new exit (range 15) 607 | -10/Materials | Entered another Materials area 607 | -9/Materials | Evolved 2 slots: Propulsion x1, Weapon x1 910 | -9/Materials | Build established: Skirmisher 1011 | -9/Materials | Self-destructed Last Messages --------------- 00976_ Connecting with Terminal... 00976_ Current location identified: Materials 00992_ G-34 Mercenary suffers critical hit (Burn). 00995_ Heat Sink melted. 00995_ Aluminum Leg melted. 00995_ G-34 Mercenary destroyed. 00995_ Switching to secondary target: Y-45 Defender. 00996_ R-06 Scavenger collects Aluminum Leg. 01003_ G-34 Mercenary destroyed. 01003_ Switching to secondary target: Y-45 Defender. 01006_ K-01 Serf collects debris. 01008_ Lgt. Assault Rifle destroyed. 01009_ R-06 Scavenger collects Aluminum Leg. 01009_ K-01 Serf collects debris. 01011_ Overheating: System interference. 01011_ Imp. Terrain Scanner temporarily disabled. Map ----- +----------------------------------------------------+ | | | ????????????????????????????????????????????????? | | ????????????????????????????????????????????????? | | ????????????????????????????????????????????????? | | ????????????????????????????????????????????????? | | ????????????????????????????????????????????????? | | ????????????????????????????????????????????????? | | ????????????????????????????????????????????????? | | ????????????????????????????????????????????????? | | ???????????????????? ???? ??????????????????????? | | ????????????????????????????????????????????????? | | ??????????????????? ??????? ????????????????????? | | ??????##########????????????????????????????????? | | ??????# #?????"?????? ?????#?????????????? | | ??????# """ #????????????? ??????????????????? | | ??????# """ #?????"???#??#???????????????????? | | ??????# """ #????"???????#???????????????????? | | ??????# #???"??????#?#??#???#????????????? | | ??????# """ ########+### ### #????????????? | | ??????# """ + #????????????? | | ?????## """ # #????????????? | | ??????# # "T" ########?????????????????? | | ??????########## ]#??????#?????????#???????? | | ???? ???# # #?##???? ??????????????? | | ???????## # a k ##### """ ?????????????? | | ????????#""" # r Y%@ Y """ ?????????????? | | ?????#??#""" + ##/###### """ ???#?????????? | | ????????#""" # # #? ?? ]??????????????? | | ????????# # # "" #???? ???????????????? | | ?# ########### # Y" # S??????????????????? | | ## # "" #????????#???????????? | | ?# +* #???? ???????????????? | | ?# # #????????????????????? | | ?# ###+##### ### [##???#???????????????? | | ????????? ? ?# ### """ #????????????????????? | | ?????#???????# #?# """ #??????#?????????????? | | ?????????" ??# #?# """ #???#????????????????? | | ?????????????# #?# #????????????????????? | | ??? ?????????# #?#########????????#???????????? | | ????????"????# #???????#??????????????????????? | | ?#???????????# #???????#??#???????????????????? | | ??????????? ?# #???#???????????????#??????????? | | ?????????????# ########???????????????????????? | | ?????????????# # #?##????????????????????? | | ?????#???" ?# # """ #??#????????????????????? | | ?????#???"???# # """ ##?????????????#????????? | | ????????????## + """ #???????#???????????????? | | ?????????????# # """ #???#########???????????? | | ????#??????#?#! + #???# #???????????? | | ???#?#???????#%! ######### ?# ##??????????? | +----------------------------------------------------+ Best States ------------- Heat Dissipation 28 Energy Generation 10 Energy Capacity 250 Matter Stores 300 Matter Capacity 300 Sight Range 16 Terrain Scan Range 16 Terrain Scan Density 10 Evasion (%) 55 Item Schematics ----------------- None Robot Schematics ------------------ None Fabricated ------------ Nothing Repaired ---------- Nothing Alien Tech Used ----------------- None Achievements -------------- None Challenges ------------ None Game ------ Seed ImpulseSurgeBarrier Manual? 0 Play Time 00:05:45 Cumulative 81.3 hours Start 2025.09.20 @ 23:35:55 End 2025.09.21 @ 11:09:52 Sessions 3 Manual Loads 0 Difficulty Rogue Special Mode None Game No. 172 Rogue 170 Adventurer 0 Explorer 2 Win Type - Total 0 Types 0/0/0/0/0/0/0/0/0/0 Lore% 28 Gallery% 46 Achievement% 41 Wizard Run 0 Options --------- Layout 2 ASCII 0 Keyboard 1 Movement Arrows Keybinds 0 Fullscreen 1 Font 28/SmallcapsGlow Map View 50x49 Zoom Use 0% Tactical HUD 1 Map Filters NONE Filters NONE Steam 1 RUN: 045e4d79-325e-4e22-84bf-4809f7b1186c